fUSD/lending_fUSD_20240614
["ID","MTS","AMOUNT","RATE_DAILY","PERIOD"]
[329420677,1718328774905,-2477.54,0.00027123,3]
[329420678,1718328774917,-2739.81,0.00027123,3]
[329420679,1718328774929,-22917.63,0.00027123,3]
[329420680,1718328774943,-2363.24,0.00027123,3]
[329420681,1718328774956,-801.82,0.00027123,3]
[329420682,1718328774969,-1182.53,0.00027123,3]
[329420683,1718328774984,-500.0,0.00027123,3]
[329420684,1718328775010,-2489.52,0.00027123,3]
[329420685,1718328775036,-1037.71,0.00027123,3]
[329420686,1718328775062,-671.04,0.00027123,3]
[329420687,1718328775100,-2448.61,0.00027123,3]
[329420688,1718328775127,-709.17,0.00027123,3]
[329420689,1718328775156,-2250.55,0.00027123,3]
[329420690,1718328775194,-663.02,0.00027123,3]
[329420691,1718328775228,-2614.62,0.00027123,3]
[329420692,1718328775241,-500.0,0.00027123,3]
[329420693,1718328775275,-560.42,0.00027123,3]
[329420694,1718328775299,-1131.25,0.00027123,3]
[329420695,1718328775317,-500.0,0.00027123,3]
[329420696,1718328775349,-500.0,0.00027123,3]
[329420697,1718328775373,-3845.21,0.00027123,3]
[329420698,1718328775402,-967.09,0.00027123,3]
[329420699,1718328775433,-500.0,0.00027123,3]
[329420700,1718328775446,-3200.03,0.00027123,3]
[329420701,1718328775460,-714.39,0.00027123,3]
[329420702,1718328775475,-6182.51,0.00027123,3]
[329420703,1718328775491,-2771.64,0.00027123,3]
[329420704,1718328775519,-1117.03,0.00027123,3]
[329420705,1718328775538,-500.0,0.00027123,3]
[329420706,1718328775557,-818.88,0.00027123,3]
[329420707,1718328775573,-1181.16,0.00027123,3]
[329420708,1718328775591,-500.0,0.00027123,3]
[329420709,1718328775612,-13361.61,0.00027123,3]
[329420710,1718328775624,-500.0,0.00027123,3]
[329420711,1718328775637,-500.0,0.00027123,3]
[329420712,1718328775663,-740.73,0.00027123,3]
[329420713,1718328775699,-584.95,0.00027123,3]
[329420714,1718328775712,-4766.45,0.00027123,3]
[329420715,1718328775739,-932.3,0.00027123,3]
[329420716,1718328775764,-1223.188309,0.0002714,2]
[329420717,1718328775782,-2500.0,0.00027157,2]
[329420718,1718328775796,-306.00668393,0.000272,2]
[329420719,1718328775807,-970.36,0.000272,2]
[329420720,1718328775825,-2500.0,0.00027317,2]
[329420721,1718328775846,-15065.74566811,0.00027366,2]
[329420722,1718328775860,-500.0,0.00027397,2]
[329420723,1718328775872,-344.79052509,0.00027397,2]
[329420724,1718328775888,-500.0,0.00027397,3]
[329420725,1718328775899,-500.0,0.00027397,3]
[329420726,1718328775912,-294.1956222,0.00027397,3]
[329420727,1718328775925,-500.0,0.00027397,3]
[329420728,1718328775937,-500.0,0.00027397,3]
[329420729,1718328775951,-374.75426791,0.00027397,3]
[329420730,1718328775964,-500.0,0.00027397,3]
[329420731,1718328775979,-535.98,0.00027397,3]
[329420732,1718328775992,-500.0,0.00027397,3]
[329420733,1718328776005,-500.0,0.00027397,3]
[329420734,1718328776023,-539.14,0.00027397,3]
[329420735,1718328776039,-539.62,0.00027397,3]
[329420736,1718328776050,-804.49,0.00027397,3]
[329420737,1718328776066,-500.0,0.00027397,3]
[329420738,1718328776081,-572.62,0.00027397,3]
[329420739,1718328776105,-500.0,0.00027397,3]
[329420740,1718328776120,-500.0,0.00027397,3]
[329420741,1718328776148,-774.54,0.00027397,3]
[329420742,1718328776166,-986.18,0.00027397,3]
[329420743,1718328776178,-500.0,0.00027397,3]
[329420744,1718328776188,-500.0,0.00027397,3]
[329420745,1718328776201,-500.0,0.00027397,3]
[329420746,1718328776220,-500.0,0.00027397,3]
[329420747,1718328776238,-500.0,0.00027397,3]
[329420748,1718328776258,-414.38,0.00027397,3]
[329420749,1718328776288,-500.0,0.00027397,3]
[329420750,1718328776301,-611.61,0.00027397,3]
[329420751,1718328776316,-612.48,0.00027397,3]
[329420752,1718328776332,-500.0,0.00027397,3]
[329420753,1718328776352,-583.88,0.00027397,3]
[329420754,1718328776364,-500.0,0.00027397,3]
[329420755,1718328776377,-548.53,0.00027397,3]
[329420756,1718328776390,-500.0,0.00027397,3]
[329420757,1718328776403,-692.1,0.00027397,3]
[329420758,1718328776416,-634.92,0.00027397,3]
[329420759,1718328776460,-588.02,0.00027397,3]
[329420760,1718328776496,-170.32,0.00027397,3]
[329420761,1718328776527,-660.68,0.00027397,3]
[329420762,1718328776553,-960.66,0.00027397,3]
[329420763,1718328776566,-500.0,0.00027397,3]
[329420764,1718328776585,-1302.28,0.00027397,3]
[329420765,1718328776617,-500.0,0.00027397,3]
[329420766,1718328776643,-617.28,0.00027397,3]
[329420767,1718328776661,-500.0,0.00027397,3]
[329420768,1718328776674,-500.0,0.00027397,3]
[329420769,1718328776688,-500.0,0.00027397,3]
[329420770,1718328776699,-1500.0,0.00027397,2]
[329420771,1718328776712,-565.86,0.00027397,3]
[329420772,1718328776729,-883.98,0.00027397,3]
[329420773,1718328776742,-1500.0,0.00027397,2]
[329420774,1718328776773,-1500.0,0.00027397,2]
[329420775,1718328776792,-1500.0,0.00027397,3]
[329420776,1718328776806,-609.87858746,0.00027397,3]
[329420777,1718328776818,-528.45,0.00027397,3]
[329420778,1718328776832,-742.73,0.00027397,3]
[329420779,1718328776863,-500.0,0.00027397,3]
[329420780,1718328776877,-500.0,0.00027397,3]
[329420781,1718328776890,-500.0,0.00027397,3]
[329420782,1718328776926,-598.84,0.00027397,3]
[329420783,1718328776952,-500.0,0.00027397,3]
[329420784,1718328776978,-500.0,0.00027397,3]
[329420785,1718328777006,-500.0,0.00027397,3]
[329420786,1718328777024,-719.93,0.00027397,3]
[329420787,1718328777036,-500.0,0.00027397,3]
[329420788,1718328777050,-500.0,0.00027397,3]
[329420789,1718328777086,-500.0,0.00027397,3]
[329420790,1718328777100,-500.0,0.00027397,3]
[329420791,1718328777113,-500.0,0.00027397,3]
[329420792,1718328777136,-500.0,0.00027397,3]
[329420793,1718328777149,-997.89,0.00027397,3]
[329420794,1718328777173,-500.0,0.00027397,3]
[329420795,1718328777322,-1232.27,0.00027397,3]
[329420796,1718328777353,-500.0,0.00027397,3]
[329420797,1718328777374,-500.0,0.00027397,3]
[329420798,1718328777392,-500.0,0.00027397,3]
[329420799,1718328777405,-500.0,0.00027397,3]
[329420800,1718328777425,-545.28,0.00027397,3]
[329420801,1718328777440,-695.7,0.00027397,3]
[329420802,1718328777456,-552.3,0.00027397,3]
[329420803,1718328777471,-500.0,0.00027397,3]
[329420804,1718328777482,-500.0,0.00027397,3]
[329420805,1718328777494,-500.0,0.00027397,3]
[329420806,1718328777513,-922.06,0.00027397,3]
[329420807,1718328777533,-1020.66,0.00027397,3]
[329420808,1718328777546,-500.0,0.00027397,3]
[329420809,1718328777557,-1333.56,0.00027397,3]
[329420810,1718328777586,-578.22,0.00027397,3]
[329420811,1718328777598,-500.0,0.00027397,3]
[329420812,1718328777616,-904.07,0.00027397,3]
[329420813,1718328777631,-556.85,0.00027397,3]
[329420814,1718328777643,-903.49,0.00027397,3]
[329420815,1718328777654,-500.0,0.00027397,3]
[329420816,1718328777668,-512.2,0.00027397,3]
[329420817,1718328777680,-1002.39,0.00027397,3]
[329420818,1718328777693,-738.2,0.00027397,3]
[329420819,1718328777707,-500.0,0.00027397,3]
[329420820,1718328777740,-500.0,0.00027397,3]
[329420821,1718328777765,-798.44,0.00027397,3]
[329420822,1718328777788,-262.1,0.00027397,3]
[329420823,1718328777800,-500.0,0.00027397,3]
[329420824,1718328777816,-500.0,0.00027397,3]
[329420825,1718328777827,-591.59,0.00027397,3]
[329420826,1718328777844,-500.0,0.00027397,3]
[329420827,1718328777857,-659.35,0.00027397,3]
[329420828,1718328777874,-569.74,0.00027397,3]
[329420829,1718328777894,-621.41,0.00027397,3]
[329420830,1718328777909,-549.56,0.00027397,3]
[329420831,1718328777931,-630.44,0.00027397,3]
[329420832,1718328777945,-500.0,0.00027397,3]
[329420833,1718328777963,-500.0,0.00027397,3]
[329420834,1718328778000,-2024.27,0.00027397,3]
[329420835,1718328778014,-486.12,0.00027397,3]
[329420836,1718328778047,-550.31,0.00027397,3]
[329420837,1718328778070,-661.6,0.00027397,3]
[329420838,1718328778105,-1051.97,0.00027397,3]
[329420839,1718328778129,-500.0,0.00027397,3]
[329420840,1718328778192,-560.51,0.00027397,3]
[329420841,1718328778217,-2230.14,0.00027397,3]
[329420842,1718328778247,-699.68,0.00027397,3]
[329420843,1718328778274,-1026.29,0.00027397,3]
[329420844,1718328778291,-6651.01,0.00027397,3]
[329420845,1718328778303,-443.21264181,0.00027397,3]
[329420846,1718328778315,-500.0,0.00027397,3]
[329420847,1718328778328,-905.81,0.00027397,3]
[329420848,1718328778344,-500.0,0.00027397,3]
[329420849,1718328778392,-3969.41,0.00027397,3]
[329420850,1718328778416,-500.0,0.00027397,3]
[329420851,1718328778449,-807.05,0.00027397,3]
[329420852,1718328778475,-2365.65,0.00027397,3]
[329420853,1718328778500,-500.0,0.00027397,3]
[329420854,1718328778511,-593.15,0.00027397,3]
[329420855,1718328778523,-2105.93,0.00027397,3]
[329420856,1718328778541,-843.89,0.00027397,3]
[329420857,1718328778554,-598.1,0.00027397,3]
[329420858,1718328778567,-500.0,0.00027397,3]
[329420859,1718328778588,-7638.61,0.00027397,3]
[329420860,1718328778600,-3190.81,0.00027397,3]
[329420861,1718328778625,-3649.11,0.00027397,3]
[329420862,1718328778643,-699.16,0.00027397,3]
[329420863,1718328778659,-1217.69,0.00027397,3]
[329420864,1718328778681,-2721.15,0.00027397,3]
[329420865,1718328778709,-500.0,0.00027397,3]
[329420866,1718328778722,-1011.07,0.00027397,3]
[329420867,1718328778735,-1346.53,0.00027397,3]
[329420868,1718328778753,-13586.59,0.00027397,3]
[329420869,1718328778770,-680.82,0.00027397,3]
[329420870,1718328778783,-2862.08,0.00027397,3]
[329420871,1718328778807,-2933.81,0.00027397,3]
[329420872,1718328778822,-761.51,0.00027397,3]
[329420873,1718328778838,-2631.81,0.00027397,3]
[329420874,1718328778858,-563.33,0.00027397,3]
[329420875,1718328778882,-1745.88,0.00027397,3]
[329420876,1718328778897,-1902.96,0.00027397,3]
[329420877,1718328778925,-773.16,0.00027397,3]
[329420878,1718328778946,-2172.15,0.00027397,3]
[329420879,1718328778976,-1825.98,0.00027397,3]
[329420880,1718328779017,-237.09,0.00027397,3]
[329420881,1718328779030,-679.92,0.00027397,3]
[329420882,1718328779051,-986.43,0.00027397,3]
[329420883,1718328779069,-1829.1,0.00027397,3]
[329420884,1718328779098,-1082.5,0.00027397,3]
[329420885,1718328779154,-1832.39,0.00027397,3]
[329420886,1718328779167,-2157.56,0.00027397,3]
[329420887,1718328779189,-638.87,0.00027397,3]
[329420888,1718328779208,-906.62,0.00027397,3]
[329420889,1718328779228,-500.0,0.00027397,3]
[329420890,1718328779250,-690.46,0.00027397,3]
[329420891,1718328779268,-500.0,0.00027397,3]
[329420892,1718328779293,-988.9,0.00027397,3]
[329420893,1718328779316,-731.35,0.00027397,3]
[329420894,1718328779338,-27287.16,0.00027397,3]
[329420895,1718328779353,-613.74,0.00027397,3]
[329420896,1718328779388,-500.0,0.00027397,3]
[329420897,1718328779402,-500.0,0.00027397,3]
[329420898,1718328779424,-500.0,0.00027397,3]
[329420899,1718328779447,-500.0,0.00027397,3]
[329420900,1718328779473,-910.96,0.00027397,3]
[329420901,1718328779488,-6932.08,0.00027397,3]
[329420902,1718328779503,-974.92,0.00027397,3]
[329420903,1718328779519,-2616.08,0.00027397,3]
[329420904,1718328779542,-817.09,0.00027397,3]
[329420905,1718328779559,-1080.82,0.00027397,3]
[329420906,1718328779577,-709.94,0.00027397,3]
[329420907,1718328779600,-500.0,0.00027397,3]
[329420908,1718328779611,-1643.14,0.00027397,3]
[329420909,1718328779637,-6948.28,0.00027397,3]
[329420910,1718328779649,-2321.35,0.00027397,3]
[329420911,1718328779665,-533.51720374,0.00027397,3]
[329420912,1718328780239,-1209.25,0.00024657,2]
[329420913,1718328780253,-184.24855,0.00024657,7]
[329420914,1718328780266,-500.0,0.00025479,3]
[329420915,1718328780283,-840.46239255,0.00025753,3]
[329420916,1718328781400,-252.52432552,0.00024108,2]
[329420917,1718328831222,1507812.47123877,0.00014,2]
[329420918,1718328835959,5902.78840916,9e-05,2]
[329420919,1718328845528,9617.07659483,0.000118,2]
[329420920,1718328871091,3899.17080921,0.0001298,2]
[329420921,1718328871437,14322.41417665,6.94e-05,2]
[329420922,1718328931576,6517.3691332,0.00013297,2]
[329420923,1718328959317,5016.46581331,0.0001305,2]
[329420925,1718328998274,9414.68649649,0.00013,2]
[329420929,1718329351835,5271.74255576,0.00013,2]
[329420930,1718329352462,389.68198597,0.00014,2]
[329420931,1718329365872,13687.19781463,0.00013,2]
[329420932,1718329383784,5849.05586374,0.00013,2]
[329420933,1718329481781,68741.24089125,0.00013,2]
[329420934,1718329506071,155.0,0.00013,2]
[329420935,1718329527892,234.3543064,0.00013,2]
[329420940,1718329769192,-155.0,0.00017212,2]
[329420941,1718329769228,-786.90809948,0.00017212,2]
[329420942,1718329769259,-166.799397,0.00017213,2]
[329420943,1718329769289,-241.79566205,0.00017214,2]
[329420944,1718329769317,-283.14081319,0.00017214,2]
[329420945,1718329769344,-5586.98275761,0.00017214,2]
[329420946,1718329769373,-2535.15209052,0.00017214,2]
[329420988,1718329833787,-155.0,0.00017112,2]
[329420989,1718329833798,-159.77308045,0.00017113,2]
[329420990,1718329833865,-4447.99618339,0.00017212,2]
[329420991,1718329833878,-177.42083816,0.00017213,2]
[329420992,1718329833894,-846.17322133,0.00017213,2]
[329420993,1718329833908,-2114.57781001,0.00017218,2]
[329420994,1718329833929,-8430.29716122,0.00017218,2]
[329420995,1718329833941,-3768.0,0.00017219,2]
[329420996,1718329833952,-942.89791342,0.0001722,2]
[329420997,1718329833966,-942.89791342,0.0001722,2]
[329420998,1718329833982,-150.0,0.00017233,2]
[329420999,1718329833999,-4630.31658529,0.00017258,2]
[329421000,1718329834011,-351.02,0.0001726,2]
[329421001,1718329834032,-546.09,0.00019404,2]
[329421002,1718329834044,-250.0,0.00020982,2]
[329421003,1718329834070,-1250.0,0.00021,2]
[329421004,1718329834097,-250.0,0.00021054,2]
[329421005,1718329834113,-500.0,0.00021059,2]
[329421006,1718329834149,-280.28,0.00021169,2]
[329421007,1718329834201,-4277.68,0.00021204,2]
[329421008,1718329834212,-165.93,0.00021313,2]
[329421009,1718329834222,-406.15,0.00021373,2]
[329421010,1718329834236,-546.09,0.00021668,2]
[329421011,1718329834291,-165.93,0.00021683,2]
[329421012,1718329834303,-754.39297711,0.00021695,2]
[329421013,1718329834331,-334.46,0.00021918,2]
[329421014,1718329834343,-1479.149539,0.00021934,2]
[329421015,1718329834354,-181.543176,0.00021934,2]
[329421016,1718329834366,-2491.000409,0.00021934,2]
[329421017,1718329834390,-211.512064,0.00021934,2]
[329421018,1718329834409,-708.198102,0.00021934,2]
[329421019,1718329834437,-181.338441,0.00021934,2]
[329421020,1718329834453,-177.813857,0.00021934,2]
[329421021,1718329834475,-1831.0,0.00021992,2]
[329421022,1718329834486,-165.93,0.00022053,2]
[329421023,1718329834497,-4474.85,0.00022182,2]
[329421024,1718329834511,-1479.149539,0.00022208,2]
[329421025,1718329834522,-2491.000409,0.00022208,2]
[329421026,1718329834539,-708.198102,0.00022208,2]
[329421027,1718329834550,-165.93,0.00022423,2]
[329421028,1718329834565,-1479.149539,0.00022482,2]
[329421029,1718329834582,-2491.000409,0.00022482,2]
[329421030,1718329834595,-708.198102,0.00022482,2]
[329421031,1718329834606,-177.813857,0.00022482,2]
[329421032,1718329834617,-250.0,0.00022608,2]
[329421033,1718329834628,-1479.149539,0.00022756,2]
[329421034,1718329834640,-2491.000409,0.00022756,2]
[329421035,1718329834652,-708.198102,0.00022756,2]
[329421036,1718329834672,-174.47070371,0.00023,2]
[329421037,1718329834938,-1479.149539,0.0002303,2]
[329421038,1718329834951,-2491.000409,0.0002303,2]
[329421039,1718329834966,-708.198102,0.0002303,2]
[329421040,1718329834984,-181.543176,0.0002303,2]
[329421041,1718329834996,-181.338441,0.0002303,2]
[329421042,1718329835008,-177.813857,0.00023031,2]
[329421043,1718329835034,-2490.0,0.000238,2]
[329421044,1718329835049,-546.09,0.00023932,2]
[329421045,1718329835066,-688.82,0.00024006,2]
[329421046,1718329835077,-12730.91091576,0.00024006,2]
[329421047,1718329835090,-788.63428968,0.00024007,2]
[329421048,1718329835101,-155.18503727,0.00024007,2]
[329421049,1718329835123,-242.65755576,0.00024007,2]
[329421050,1718329835134,-170.52461658,0.00024007,2]
[329421051,1718329835162,-1209.18250915,0.00024007,2]
[329421052,1718329835186,-330.72258386,0.00024007,2]
[329421053,1718329835217,-1348.5169,0.00024007,2]
[329421054,1718329835227,-877.2708,0.00024009,2]
[329421055,1718329835249,-13093.7651,0.00024009,2]
[329421056,1718329835273,-438.6544,0.00024009,2]
[329421057,1718329835288,-1000.0,0.00024009,2]
[329421058,1718329835298,-20117.6802,0.00024009,2]
[329421059,1718329835308,-3103.3166,0.00024009,2]
[329421060,1718329835321,-1000.0,0.00024009,2]
[329421061,1718329835333,-7500.0,0.00024009,2]
[329421062,1718329835352,-406.15,0.00024045,2]
[329421063,1718329835370,-876.47,0.00024096,3]
[329421064,1718329835383,-385.57873711,0.00024106,2]
[329421065,1718329835393,-2831.47373874,0.00024106,2]
[329421066,1718329835405,-179.69023242,0.00024106,2]
[329421067,1718329835427,-548.26097128,0.00024106,2]
[329421068,1718329835438,-375.78788684,0.00024106,2]
[329421069,1718329835452,-1438.84318426,0.00024106,2]
[329421070,1718329835462,-240.64351499,0.00024106,2]
[329421071,1718329835473,-392.69912216,0.00024106,2]
[329421072,1718329835483,-309.82286207,0.00024106,2]
[329421073,1718329835494,-155.22571773,0.00024106,2]
[329421074,1718329835505,-487.20456477,0.00024106,2]
[329421075,1718329835516,-155.40732422,0.00024106,2]
[329421076,1718329835534,-155.82847039,0.00024106,2]
[329421077,1718329835546,-301.81967361,0.00024106,2]
[329421078,1718329835558,-292.38432367,0.00024106,2]
[329421079,1718329835573,-155.13645618,0.00024106,2]
[329421080,1718329835584,-236.91861942,0.00024106,2]
[329421081,1718329835598,-223.70263544,0.00024106,2]
[329421082,1718329835613,-155.33856158,0.00024106,2]
[329421084,1718329835642,-30469.58344258,0.00024106,2]
[329421087,1718329835656,-547.43728168,0.00024106,2]
[329421100,1718329835904,-1421.18809713,0.00024106,2]
[329421101,1718329835922,-558.15546194,0.00024106,2]
[329421102,1718329835948,-1266.60175907,0.00024106,2]
[329421103,1718329835981,-996.95343889,0.00024106,2]
[329421104,1718329836017,-328.09991999,0.00024106,2]
[329421105,1718329836049,-207.52018269,0.00024106,2]
[329421106,1718329836086,-238.44128345,0.00024106,2]
[329421107,1718329836098,-129.48956982,0.00024106,2]
[329421108,1718329836112,-26.06053396,0.00024106,2]
[329421109,1718329836131,-492.33967831,0.00024106,2]
[329421111,1718329836145,-1100.86611415,0.00024106,2]
[329421112,1718329836156,-32.29518522,0.00024106,2]
[329421119,1718329836799,-518.7943643,0.00024106,2]
[329421120,1718329836810,-192.25156192,0.00024106,2]
[329421121,1718329836821,-2376.34462616,0.00024107,2]
[329421122,1718329836849,-336.01337835,0.00024107,2]
[329421123,1718329836868,-155.12039918,0.00024107,2]
[329421124,1718329836883,-1325.76281924,0.00024107,2]
[329421125,1718329836910,-1629.73802161,0.00024107,2]
[329421126,1718329836922,-189.4573207,0.00024107,2]
[329421127,1718329836942,-157.57491895,0.00024107,2]
[329421128,1718329836956,-2235.95329287,0.00024107,7]
[329421129,1718329836972,-217.17358182,0.00024107,2]
[329421130,1718329836989,-268.2452857,0.00024107,2]
[329421131,1718329837000,-1592.03099755,0.00024107,2]
[329421132,1718329837015,-166.86402543,0.00024107,2]
[329421133,1718329837036,-156.06407451,0.00024107,2]
[329421134,1718329837048,-335.50273536,0.00024107,2]
[329421135,1718329837063,-1742.97390485,0.00024107,2]
[329421136,1718329837076,-1069.83822807,0.00024107,2]
[329421137,1718329837088,-161.21221418,0.00024107,2]
[329421138,1718329837109,-155.33653911,0.00024107,2]
[329421139,1718329837129,-157.47900302,0.00024107,2]
[329421140,1718329837143,-1056.08533448,0.00024107,2]
[329421141,1718329837156,-218.00759009,0.00024107,2]
[329421142,1718329837180,-652.1663107,0.00024107,2]
[329421143,1718329837200,-1255.25974924,0.00024107,2]
[329421144,1718329837217,-155.22547387,0.00024107,2]
[329421145,1718329837250,-277.89324239,0.00024107,2]
[329421146,1718329837273,-404.90707192,0.00024107,2]
[329421147,1718329837284,-3108.08182285,0.00024107,2]
[329421148,1718329837298,-326.58076233,0.00024107,2]
[329421149,1718329837313,-475.19448692,0.00024107,2]
[329421150,1718329837329,-966.5395942,0.00024107,2]
[329421151,1718329837348,-255.19312497,0.00024107,2]
[329421152,1718329837361,-155.58006993,0.00024107,2]
[329421153,1718329837380,-161.63255483,0.00024107,2]
[329421154,1718329837410,-268.9415408,0.00024107,2]
[329421155,1718329837427,-3797.65258083,0.00024107,2]
[329421156,1718329837445,-35013.31820311,0.00024108,2]
[329421157,1718329837489,-447.40192806,0.00024108,2]
[329421158,1718329837509,-500.0,0.00024109,2]
[329421159,1718329837560,-500.0,0.00024109,2]
[329421160,1718329837578,-500.0,0.00024109,2]
[329421161,1718329837593,-500.0,0.00024109,2]
[329421162,1718329837613,-553.20213403,0.00024109,2]
[329421163,1718329837628,-500.0,0.00024109,2]
[329421164,1718329837649,-500.0,0.00024109,2]
[329421165,1718329837692,-500.0,0.00024109,2]
[329421166,1718329837703,-500.0,0.00024109,2]
[329421167,1718329837719,-500.0,0.00024109,2]
[329421168,1718329837812,-500.0,0.00024109,2]
[329421169,1718329837848,-638.81500386,0.00024109,2]
[329421170,1718329837869,-500.0,0.00024109,2]
[329421171,1718329837887,-500.0,0.00024109,2]
[329421172,1718329837901,-500.0,0.00024109,2]
[329421173,1718329837924,-500.0,0.00024109,2]
[329421174,1718329837953,-500.0,0.00024109,2]
[329421175,1718329837993,-500.0,0.00024109,2]
[329421176,1718329838036,-500.0,0.00024109,2]
[329421177,1718329838052,-500.0,0.00024109,2]
[329421178,1718329838088,-500.0,0.00024109,2]
[329421179,1718329838106,-500.0,0.00024109,2]
[329421180,1718329838129,-500.0,0.00024109,2]
[329421181,1718329838142,-500.0,0.00024109,2]
[329421182,1718329838152,-500.0,0.00024109,2]
[329421183,1718329838176,-500.0,0.00024109,2]
[329421184,1718329838218,-500.0,0.00024109,2]
[329421185,1718329838240,-500.0,0.00024109,2]
[329421186,1718329838255,-500.0,0.00024109,2]
[329421187,1718329838269,-187.55729652,0.00024109,2]
[329421188,1718329838300,-500.0,0.00024109,2]
[329421190,1718329838340,-500.0,0.00024109,2]
[329421191,1718329838358,-500.0,0.00024109,2]
[329421192,1718329838377,-500.0,0.00024109,2]
[329421193,1718329838397,-500.0,0.00024109,2]
[329421194,1718329838411,-500.0,0.00024109,2]
[329421195,1718329838423,-500.0,0.00024109,2]
[329421196,1718329838441,-500.0,0.00024109,2]
[329421197,1718329838471,-500.0,0.00024109,2]
[329421198,1718329838490,-500.0,0.00024109,2]
[329421199,1718329838527,-500.0,0.00024109,2]
[329421200,1718329838540,-500.0,0.00024109,2]
[329421202,1718329838554,-500.0,0.00024109,2]
[329421204,1718329838582,-500.0,0.00024109,2]
[329421205,1718329838620,-500.0,0.00024109,2]
[329421207,1718329838639,-500.0,0.00024109,2]
[329421209,1718329838655,-500.0,0.00024109,2]
[329421211,1718329838666,-500.0,0.00024109,2]
[329421213,1718329838678,-500.0,0.00024109,2]
[329421215,1718329838706,-500.0,0.00024109,2]
[329421216,1718329838718,-500.0,0.00024109,2]
[329421218,1718329838731,-500.0,0.00024109,2]
[329421219,1718329838746,-500.0,0.00024109,2]
[329421221,1718329838757,-500.0,0.00024109,2]
[329421223,1718329838769,-500.0,0.00024109,2]
[329421226,1718329838788,-500.0,0.00024109,2]
[329421227,1718329838807,-500.0,0.00024109,2]
[329421229,1718329838825,-500.0,0.00024109,2]
[329421231,1718329838837,-500.0,0.00024109,2]
[329421233,1718329838872,-500.0,0.00024109,2]
[329421234,1718329838882,-510.65235582,0.00024109,2]
[329421235,1718329838931,-500.0,0.00024109,2]
[329421237,1718329838943,-500.0,0.00024109,2]
[329421238,1718329838953,-500.0,0.00024109,2]
[329421240,1718329838963,-503.43776862,0.00024109,2]
[329421242,1718329838973,-500.0,0.00024109,2]
[329421245,1718329838986,-500.0,0.00024109,2]
[329421246,1718329839009,-500.0,0.00024109,2]
[329421247,1718329839023,-500.0,0.00024109,2]
[329421248,1718329839038,-500.0,0.00024109,2]
[329421249,1718329839051,-500.0,0.00024109,2]
[329421250,1718329839062,-240.56951407,0.00024109,2]
[329421251,1718329839083,-259.43048593,0.00024109,2]
[329421252,1718329839095,-500.0,0.00024109,2]
[329421253,1718329839107,-500.0,0.00024109,2]
[329421254,1718329839127,-500.0,0.00024109,2]
[329421255,1718329839137,-500.0,0.00024109,2]
[329421256,1718329839168,-500.0,0.00024109,2]
[329421257,1718329839228,-636.3464758,0.00024109,2]
[329421258,1718329839262,-429.1497451,0.00024109,2]
[329421259,1718329839282,-500.0,0.00024109,2]
[329421260,1718329839295,-500.0,0.00024109,2]
[329421261,1718329839307,-500.0,0.00024109,2]
[329421262,1718329839325,-548.42,0.00024109,2]
[329421263,1718329839336,-500.0,0.00024109,2]
[329421264,1718329839351,-591.54,0.00024109,2]
[329421265,1718329839363,-500.0,0.00024109,2]
[329421266,1718329839388,-992.45,0.00024109,2]
[329421268,1718329839399,-500.0,0.00024109,2]
[329421269,1718329839414,-500.0,0.00024109,2]